bitfinex/quotes_SOLUSD_20250508
["timestamp","ask_amount","ask_price","bid_price","bid_amount"]
[1746668058330,6.72314105,148.74,148.72,22.30252693]
[1746668058528,6.72314105,148.74,148.68,49.84842693]
[1746668058529,6.72314105,148.74,148.68,48.30252693]
[1746668058732,136.6,148.73,148.71,22.30252693]
[1746668059038,136.6,148.72,148.7,22.30252693]
[1746668059944,6.72449734,148.71,148.7,22.30252693]
[1746668062051,136.6,148.72,148.7,22.30252693]
[1746668062052,143.32422921,148.72,148.7,22.30252693]
[1746668062247,136.6,148.72,148.71,22.30252693]
[1746668062826,6.72404518,148.72,148.71,22.30252693]
[1746668064267,23.53099367,148.74,148.7,22.30252693]
[1746668064465,45.8335206,148.74,148.66,6.72675904]
[1746668064672,155.24964886,148.73,148.69,22.30252693]
[1746668064839,155.24964886,148.73,148.7,22.30252693]
[1746668065267,155.24964886,148.73,148.71,22.30252693]
[1746668065647,6.72404518,148.72,148.71,22.30252693]
[1746668065851,6.72404518,148.72,148.68,22.30252693]
[1746668066068,6.72404518,148.72,148.71,22.30252693]
[1746668068451,143.32378233,148.73,148.71,22.30252693]
[1746668068772,143.32378233,148.73,148.68,29.02836676]
[1746668068773,143.32378233,148.73,148.72,22.30252693]
[1746668069266,143.32378233,148.73,148.71,22.30252693]
[1746668069458,143.32378233,148.73,148.65,42.81798119]
[1746668069459,143.32378233,148.73,148.66,6.7265958]
[1746668069640,136.6,148.72,148.66,6.7265958]
[1746668069843,136.6,148.72,148.7,22.30252693]
[1746668070569,6.72449734,148.71,148.7,22.30252693]
[1746668071695,6.72449734,148.71,148.65,26.0]
[1746668071973,6.72449734,148.71,148.64,1.6013]
[1746668071974,136.6,148.7,148.64,1.6013]
[1746668072179,136.6,148.7,148.69,22.30252693]
[1746668072860,143.32494956,148.7,148.69,22.30252693]
[1746668073181,136.6,148.7,148.69,22.30252693]
[1746668073762,143.32494956,148.7,148.69,22.30252693]
[1746668073972,143.32494956,148.7,148.64,1.6013]
[1746668074160,143.32494956,148.7,148.67,22.30252693]
[1746668074466,136.6,148.69,148.66,22.30252693]
[1746668074677,6.72585418,148.68,148.66,22.30252693]
[1746668075367,143.32558512,148.69,148.67,22.30252693]
[1746668075671,136.6,148.69,148.68,22.30252693]
[1746668076750,143.32540184,148.69,148.68,22.30252693]
[1746668078374,136.6,148.69,148.68,22.30252693]
[1746668078676,143.32540184,148.69,148.68,22.30252693]
[1746668081281,136.6,148.69,148.68,22.30252693]
[1746668081659,136.6,148.72,148.68,44.60505386]
[1746668081862,136.6,148.72,148.71,22.30252693]
[1746668084079,136.6,148.75,148.71,22.30252693]
[1746668084259,136.6,148.79,148.74,22.30252693]
[1746668084464,136.6,148.78,148.77,22.30252693]
[1746668086255,143.32133351,148.78,148.77,22.30252693]
[1746668087177,136.6,148.78,148.77,22.30252693]
[1746668087761,136.6,148.78,148.77,29.02431223]
[1746668088357,136.6,148.84,148.77,29.02431223]
[1746668088558,136.6,148.83,148.81,22.30252693]
[1746668090518,6.71952694,148.82,148.81,22.30252693]
[1746668090695,165.62205387,148.82,148.73,26.0]
[1746668090989,136.6,148.81,148.78,22.30252693]
[1746668091162,136.6,148.8,148.78,22.30252693]
[1746668091358,136.6,148.8,148.73,26.0]
[1746668091563,136.6,148.79,148.77,22.30252693]
[1746668091770,136.6,148.78,148.77,22.30252693]
[1746668093886,143.32133351,148.78,148.77,22.30252693]
[1746668095270,136.6,148.78,148.77,22.30252693]
[1746668098404,143.32133351,148.78,148.77,22.30252693]
[1746668099078,143.32133351,148.78,148.73,32.72343481]
[1746668099404,136.6,148.78,148.77,22.30252693]
[1746668101017,143.32133351,148.78,148.77,22.30252693]
[1746668101173,143.32133351,148.78,148.73,26.0]
[1746668101374,143.32133351,148.78,148.77,22.30252693]
[1746668101816,143.32133351,148.78,148.73,32.72349072]
[1746668102318,143.32133351,148.78,148.77,22.30252693]
[1746668106312,143.32133351,148.78,148.73,26.0]
[1746668106313,136.6,148.77,148.73,26.0]
[1746668106520,136.6,148.77,148.76,22.30252693]
[1746668107717,136.6,148.77,148.76,13.92552197]
[1746668107918,143.32012193,148.81,148.76,13.92552197]
[1746668108220,143.32012193,148.81,148.8,13.92552197]
[1746668111720,143.32012193,148.81,148.8,22.27234023]
[1746668112306,136.6,148.81,148.8,22.27234023]
[1746668113419,143.31997849,148.81,148.8,22.27234023]
[1746668113812,136.6,148.81,148.8,22.27234023]
[1746668114211,143.31997849,148.81,148.8,22.27234023]
[1746668116603,136.6,148.81,148.8,22.27234023]
[1746668116803,6.71974048,148.82,148.8,22.27234023]
[1746668116999,6.71974048,148.82,148.81,22.27234023]
[1746668118428,6.71907545,148.83,148.81,22.27234023]
[1746668119122,23.51676408,148.83,148.8,22.27234023]
[1746668120311,136.6,148.82,148.76,6.7220797]
[1746668120513,136.6,148.82,148.8,22.27234023]
[1746668121730,6.71997849,148.81,148.8,22.27234023]
[1746668122927,143.31972848,148.82,148.8,22.27234023]
[1746668123230,143.31972848,148.82,148.81,22.27234023]
[1746668124931,136.6,148.82,148.81,22.27234023]
[1746668125434,143.31777096,148.86,148.81,51.26446316]
[1746668125621,143.31777096,148.86,148.85,22.27234023]
[1746668126417,143.31777096,148.86,148.83,22.27234023]
[1746668126807,158.87234023,148.85,148.8,22.27234023]
[1746668127014,136.6,148.84,148.81,22.27234023]
[1746668129137,6.71907545,148.83,148.81,22.27234023]
[1746668129436,6.71907545,148.83,148.82,22.27234023]
[1746668131034,6.71907545,148.83,148.81,22.27234023]
[1746668133343,23.51676408,148.83,148.76,26.0]
[1746668133521,23.51676408,148.83,148.8,22.27234023]
[1746668133721,23.51676408,148.83,148.8,13.92098603]
[1746668133919,23.51676408,148.83,148.81,13.92098603]
[1746668134324,23.51676408,148.83,148.8,13.92098603]
[1746668134840,23.51676408,148.83,148.82,13.92098603]
[1746668135143,6.71907545,148.83,148.82,13.92098603]
[1746668136042,143.31882369,148.84,148.82,13.92098603]
[1746668136335,143.31882369,148.84,148.83,13.92098603]
[1746668138240,143.31882369,148.84,148.79,1.5542]
[1746668138443,143.31882369,148.84,148.83,13.92098603]
[1746668140242,136.6,148.84,148.83,13.92098603]
[1746668140456,143.31744051,148.87,148.83,13.92098603]
[1746668140756,6.71744051,148.87,148.86,13.92098603]
[1746668141642,6.71636778,148.89,148.86,13.92098603]
[1746668141954,143.31605772,148.9,148.88,13.92098603]
[1746668142136,143.31605772,148.9,148.89,13.92098603]
[1746668142533,136.6,148.9,148.89,13.92098603]
[1746668142854,143.31591672,148.9,148.89,13.92098603]
[1746668146543,143.31591672,148.9,148.85,27.6396]
[1746668146544,143.31591672,148.9,148.88,13.92098603]
[1746668146939,143.31591672,148.9,148.89,13.92098603]
[1746668148339,143.31591672,148.9,148.88,13.92098603]
[1746668150958,143.31591672,148.9,148.89,13.92098603]
[1746668153361,143.31591672,148.9,148.86,6.71771854]
[1746668153545,143.31591672,148.9,148.89,13.92098603]
[1746668154571,136.6,148.9,148.89,13.92098603]
[1746668155364,136.6,148.9,148.89,27.84197206]
[1746668155734,136.6,148.9,148.89,13.92098603]
[1746668159269,6.71456388,148.93,148.89,13.92098603]
[1746668159473,6.71456388,148.93,148.9,13.92098603]
[1746668160156,37.42195963,148.93,148.85,27.6396]
[1746668160360,150.52098603,148.92,148.88,13.92098603]
[1746668160760,136.6,148.92,148.88,13.92098603]
[1746668161445,6.71546571,148.91,148.88,13.92098603]
[1746668161644,6.71546571,148.91,148.89,13.92098603]
[1746668161847,6.71546571,148.91,148.85,26.0]
[1746668162051,6.71546571,148.91,148.89,13.92098603]
[1746668164462,6.71546571,148.91,148.9,13.92098603]
[1746668164658,143.31522236,148.92,148.9,13.92098603]
[1746668164861,143.31522236,148.92,148.91,13.92098603]
[1746668165265,143.31522236,148.92,148.9,13.92098603]
[1746668167257,143.31522236,148.92,148.86,6.71753176]
[1746668167455,143.31522236,148.92,148.9,13.92098603]
[1746668167793,143.31522236,148.92,148.85,32.71802516]
[1746668168091,150.52098603,148.91,148.82,37.19918603]
[1746668168264,136.6,148.9,148.86,13.92098603]
[1746668168462,136.6,148.89,148.87,13.92098603]
[1746668168663,136.6,148.89,148.88,13.92098603]
[1746668170612,136.6,148.92,148.82,6.3182]
[1746668170779,13.92098603,148.87,148.79,6.7207326]
[1746668170977,150.52098603,148.86,148.78,13.22675414]
[1746668171176,136.6,148.86,148.82,13.92098603]
[1746668171373,136.6,148.85,148.84,13.92098603]
[1746668172166,136.6,148.9,148.84,13.92098603]
[1746668172367,143.31636778,148.89,148.86,13.92098603]
[1746668174411,174.02827328,148.89,148.85,13.92098603]
[1746668174567,13.92098603,148.87,148.81,26.0]
[1746668174764,150.52098603,148.86,148.82,13.92098603]
[1746668175374,136.6,148.86,148.82,13.92098603]
[1746668175579,136.6,148.86,148.83,13.92098603]
[1746668175778,150.52098603,148.86,148.81,13.92098603]
[1746668175970,150.52098603,148.86,148.77,25.17065188]
[1746668175971,13.92098603,148.84,148.77,1.549]
[1746668176205,150.52098603,148.83,148.79,13.92098603]
[1746668176382,6.71952694,148.82,148.78,13.92098603]
[1746668176994,6.71952694,148.82,148.79,13.92098603]
[1746668178014,143.31925192,148.83,148.8,13.92098603]
[1746668178199,143.31925192,148.83,148.81,13.92098603]
[1746668178398,143.31925192,148.83,148.8,13.92098603]
[1746668178895,143.31925192,148.83,148.81,13.92098603]
[1746668179332,143.31925192,148.83,148.77,6.72178513]
[1746668179512,143.31925192,148.83,148.79,13.92098603]
[1746668180644,143.31925192,148.83,148.8,13.92098603]
[1746668180817,136.6,148.82,148.8,13.92098603]
[1746668181220,6.71997849,148.81,148.8,13.92098603]
[1746668183833,6.71997849,148.81,148.79,13.92098603]
[1746668185423,6.71997849,148.81,148.8,13.92098603]
[1746668189430,6.71997849,148.81,148.76,26.0]
[1746668189613,6.71997849,148.81,148.8,13.92098603]
[1746668189923,6.71997849,148.81,148.79,13.92098603]
[1746668191034,6.71997849,148.81,148.78,13.92098603]
[1746668192033,6.71997849,148.81,148.79,13.92098603]
[1746668194738,6.71997849,148.81,148.8,13.92098603]
[1746668195621,143.31963351,148.82,148.8,13.92098603]
[1746668195822,143.31963351,148.82,148.81,13.92098603]
[1746668198738,136.6,148.82,148.81,13.92098603]
[1746668199444,1.5681,148.85,148.81,13.92098603]
[1746668199445,143.31860048,148.85,148.81,13.92098603]
[1746668199643,143.31860048,148.85,148.84,13.92098603]
[1746668204326,136.6,148.85,148.84,13.92098603]
[1746668207244,136.6,148.88,148.84,20.6395293]
[1746668207450,136.6,148.88,148.87,13.92098603]
[1746668210149,6.71562181,148.91,148.87,20.63824507]
[1746668210451,6.71562181,148.91,148.9,13.92098603]
[1746668210852,6.71562181,148.91,148.89,13.92098603]
[1746668211952,136.6,148.92,148.9,13.92098603]
[1746668211953,143.31507441,148.92,148.9,13.92098603]
[1746668212638,136.6,148.92,148.91,13.92098603]
[1746668213731,143.31501477,148.92,148.91,13.92098603]
[1746668214932,143.31501477,148.92,148.87,26.0]
[1746668215133,143.31501477,148.92,148.9,13.92098603]
[1746668215331,143.31501477,148.92,148.89,13.92098603]
[1746668215751,143.31501477,148.92,148.9,13.92098603]
[1746668216457,143.31501477,148.92,148.87,26.0]
[1746668216756,143.31501477,148.92,148.9,13.92098603]
[1746668219057,143.31501477,148.92,148.87,26.0]
[1746668219247,143.31501477,148.92,148.9,13.92098603]
[1746668220465,160.1025517,148.92,148.85,26.0]
[1746668220627,136.6,148.91,148.87,13.92098603]
[1746668220833,13.92098603,148.9,148.86,13.92098603]
[1746668221559,152.04158603,148.91,148.83,32.71900924]
[1746668221744,152.04158603,148.91,148.87,13.92098603]
[1746668222860,6.71591672,148.9,148.87,13.92098603]
[1746668225158,6.71591672,148.9,148.88,13.92098603]
[1746668225459,143.31560818,148.91,148.89,13.92098603]
[1746668225629,143.31560818,148.91,148.9,13.92098603]
[1746668225832,143.31560818,148.91,148.89,13.92098603]
[1746668227952,143.31560818,148.91,148.82,55.8979842]
[1746668227953,143.31560818,148.91,148.87,13.92098603]
[1746668228159,160.10427247,148.91,148.87,13.92098603]
[1746668229242,174.0252585,148.91,148.87,13.92098603]
[1746668229637,174.0252585,148.91,148.86,13.92098603]
[1746668231056,150.52098603,148.9,148.82,13.92098603]
[1746668231263,13.92098603,148.88,148.83,13.92098603]
[1746668231758,13.92098603,148.88,148.84,13.92098603]
[1746668232162,13.92098603,148.88,148.79,13.13779668]
[1746668232370,11.13472125,148.86,148.77,18.4196]
[1746668232543,11.13472125,148.86,148.81,11.13472125]
[1746668232745,171.2451666,148.87,148.83,11.13472125]
[1746668233043,136.6,148.86,148.83,11.13472125]
[1746668234663,6.71817265,148.85,148.83,11.13472125]
[1746668235955,6.71817265,148.85,148.84,11.13472125]
[1746668236261,6.71817265,148.85,148.8,26.0]
[1746668236442,6.71817265,148.85,148.82,11.13472125]
[1746668236638,6.71817265,148.85,148.83,11.13472125]
[1746668237972,136.6,148.86,148.84,11.13472125]
[1746668238155,136.6,148.86,148.82,17.8541548]
[1746668238354,136.6,148.86,148.84,11.13472125]
[1746668238772,6.71636778,148.89,148.84,11.13472125]
[1746668239070,6.71636778,148.89,148.85,11.13472125]
[1746668241649,34.6420085,148.89,148.85,11.13472125]
[1746668241852,34.6420085,148.89,148.84,11.13472125]
[1746668242372,23.50728725,148.89,148.84,11.13472125]
[1746668242573,23.50728725,148.89,148.85,11.13472125]
[1746668243173,34.6420085,148.89,148.85,11.13472125]
[1746668243364,6.7172701,148.87,148.85,11.13472125]
[1746668245773,6.7172701,148.87,148.86,11.13472125]
[1746668248483,6.7172701,148.87,148.85,11.13472125]
[1746668251575,6.7172701,148.87,148.82,26.0]
[1746668251874,6.7172701,148.87,148.83,11.13472125]
[1746668252081,23.51044535,148.87,148.83,11.13472125]
[1746668252483,23.51044535,148.87,148.84,11.13472125]
[1746668254194,23.51044535,148.87,148.8,26.0]
[1746668254375,23.51044535,148.87,148.84,11.13472125]
[1746668258094,23.51044535,148.87,148.85,11.13472125]
[1746668258286,23.51044535,148.87,148.86,11.13472125]
[1746668258892,23.51044535,148.87,148.85,11.13472125]
[1746668263590,23.51044535,148.87,148.84,11.13472125]
[1746668266702,23.51044535,148.87,148.81,26.0]
[1746668266878,136.6,148.86,148.83,11.13472125]
[1746668267074,136.6,148.86,148.81,26.0]
[1746668267371,136.6,148.86,148.82,11.13472125]
[1746668267978,147.73472125,148.86,148.81,26.0]
[1746668268184,18.64964886,148.84,148.77,23.3375]
[1746668268494,147.73472125,148.83,148.76,1.5629]
[1746668268793,6.71952694,148.82,148.79,11.13472125]
[1746668268992,6.71952694,148.82,148.8,11.13472125]
[1746668270495,136.6,148.83,148.81,11.13472125]
[1746668270801,143.31789534,148.86,148.82,11.13472125]
[1746668270992,136.6,148.86,148.84,11.13472125]
[1746668271191,136.6,148.86,148.85,11.13472125]
[1746668274704,6.71657452,148.89,148.85,11.13472125]
[1746668275001,143.31598404,148.9,148.83,6.71907545]
[1746668275204,143.31598404,148.9,148.86,11.13472125]
[1746668275506,143.31598404,148.9,148.87,11.13472125]
[1746668275692,143.31598404,148.9,148.87,11.12645399]
[1746668277000,143.31598404,148.9,148.87,11.12659453]
[1746668277208,154.44257857,148.9,148.86,11.12659453]
[1746668277903,143.31598404,148.9,148.86,11.12659453]
[1746668278795,160.10577584,148.9,148.86,11.12659453]
[1746668279310,6.71681891,148.88,148.86,11.12659453]
[1746668281410,6.71681891,148.88,148.86,11.1274105]
[1746668282013,6.71681891,148.88,148.82,11.1274105]
[1746668282187,6.71681891,148.88,148.86,11.1274105]
[1746668286113,6.71681891,148.88,148.86,11.12763284]
[1746668287499,6.71681891,148.88,148.87,11.12763284]
[1746668287702,136.6,148.92,148.87,11.12763284]
[1746668287912,143.31501477,148.92,148.91,11.12763284]
[1746668289517,143.31501477,148.92,148.89,11.12763284]
[1746668289928,160.1025517,148.92,148.89,11.12763284]
[1746668290123,171.23018454,148.92,148.85,26.0]
[1746668290420,147.72763284,148.91,148.85,26.0]
[1746668290618,147.72763284,148.91,148.86,11.12763284]
[1746668291010,6.71591672,148.9,148.86,11.12763284]
[1746668291210,6.71591672,148.9,148.87,11.12763284]
[1746668291823,23.50570852,148.9,148.83,26.0]
[1746668292120,23.50570852,148.9,148.86,11.12763284]
[1746668292323,23.50570852,148.9,148.87,11.12763284]
[1746668293925,6.71591672,148.9,148.89,11.12763284]
[1746668294501,6.71591672,148.9,148.87,11.12763284]
[1746668294922,23.50570852,148.9,148.87,11.12763284]
[1746668295427,6.71591672,148.9,148.89,11.12763284]
[1746668295926,6.71591672,148.9,148.88,11.12763284]
[1746668301934,6.71591672,148.9,148.86,11.12763284]
[1746668302115,136.6,148.89,148.86,11.12763284]
[1746668302612,136.6,148.89,148.82,11.12763284]
[1746668302813,6.7172701,148.87,148.81,1.5452]
[1746668303012,6.7172701,148.87,148.83,11.12763284]
[1746668303618,34.63807819,148.87,148.83,11.12763284]
[1746668303821,136.6,148.86,148.82,11.12763284]
[1746668304228,136.6,148.85,148.78,16.78]
[1746668304434,136.6,148.85,148.81,11.12763284]
[1746668304936,6.71862402,148.84,148.81,11.12763284]
[1746668305435,34.64281692,148.84,148.8,26.0]
[1746668305735,34.64281692,148.84,148.8,11.12763284]
[1746668306138,23.51518408,148.84,148.81,11.12763284]
[1746668306939,6.71862402,148.84,148.81,11.12763284]
[1746668307439,6.71862402,148.84,148.8,11.12763284]
[1746668308141,6.71862402,148.84,148.81,11.12763284]
[1746668308441,136.6,148.83,148.8,11.12763284]
[1746668308627,166.3772817,148.82,148.75,6.72242404]
[1746668308828,136.6,148.81,148.77,11.12763284]
[1746668309027,136.6,148.81,148.78,11.12763284]
[1746668309333,136.6,148.81,148.76,26.0]
[1746668309334,136.6,148.8,148.79,11.12763284]
[1746668310537,136.6,148.83,148.79,17.84849981]
[1746668310834,136.6,148.83,148.82,11.12763284]
[1746668311416,16.78,148.87,148.82,17.84703673]
[1746668311417,136.6,148.86,148.82,17.84703673]
[1746668311612,136.6,148.86,148.84,11.12763284]
[1746668312018,143.3179102,148.86,148.84,11.12763284]
[1746668312817,136.6,148.86,148.84,11.12763284]
[1746668313013,143.31802059,148.86,148.84,11.12763284]
[1746668313216,136.6,148.86,148.85,11.12763284]
[1746668315235,160.05561817,148.91,148.85,17.84569338]
[1746668315438,160.05561817,148.91,148.88,11.12763284]
[1746668315439,136.6,148.9,148.88,11.12763284]
[1746668315625,18.64964886,148.89,148.8,7.7954]
[1746668315826,136.6,148.88,148.85,11.12763284]
[1746668316142,136.6,148.87,148.86,11.12763284]
[1746668316847,143.3172701,148.87,148.86,11.12763284]
[1746668317343,143.3172701,148.87,148.85,11.12763284]
[1746668317846,143.3172701,148.87,148.86,11.12763284]
[1746668318346,143.3172701,148.87,148.85,11.12763284]
[1746668322352,136.6,148.86,148.79,26.0]
[1746668322541,136.6,148.86,148.82,11.12763284]
[1746668322844,136.6,148.85,148.82,11.12763284]
[1746668323550,6.71862402,148.84,148.82,11.12763284]
[1746668324248,6.71862402,148.84,148.83,11.12763284]
[1746668327126,6.71862402,148.84,148.82,11.12763284]
[1746668329948,136.6,148.83,148.77,6.72158641]
[1746668330151,136.6,148.82,148.78,11.12763284]
[1746668330450,147.72763284,148.82,148.78,11.12763284]
[1746668331249,154.44761133,148.81,148.77,11.12763284]
[1746668331457,154.44761133,148.81,148.76,37.12763284]
[1746668332063,154.44761133,148.81,148.77,11.12763284]
[1746668332734,136.6,148.8,148.73,6.72359308]
[1746668332935,136.6,148.79,148.75,11.12763284]
[1746668333136,6.72133351,148.78,148.76,11.12763284]
[1746668333958,136.6,148.79,148.77,11.12763284]
[1746668334258,136.6,148.79,148.78,11.12763284]
[1746668337960,143.32088177,148.79,148.77,11.12763284]
[1746668338291,143.32088177,148.79,148.75,26.0]
[1746668338559,143.32088177,148.79,148.75,11.12763284]
[1746668339257,136.6,148.78,148.75,11.12763284]
[1746668339760,6.7217853,148.77,148.75,11.12763284]
[1746668340336,6.7217853,148.77,148.76,11.12763284]
[1746668341853,6.72088177,148.79,148.76,11.12763284]
[1746668342066,6.71952694,148.82,148.78,11.12763284]
[1746668342275,6.71952694,148.82,148.75,17.85028793]
[1746668342276,6.71952694,148.82,148.79,11.12763284]
[1746668343069,6.68019085,148.82,148.79,11.12763284]
[1746668344152,6.68019085,148.82,148.8,11.12763284]
[1746668344358,6.68019085,148.82,148.81,11.12763284]
[1746668344859,6.71862402,148.84,148.81,11.12763284]
[1746668345159,6.71862402,148.84,148.83,11.12763284]
[1746668345553,6.71862402,148.84,148.78,1.6654]
[1746668345554,23.51518408,148.84,148.78,26.0]
[1746668345850,34.64281692,148.84,148.8,11.12763284]
[1746668346273,11.12763284,148.83,148.76,26.0]
[1746668346459,11.12763284,148.83,148.79,11.12763284]
[1746668346653,11.12763284,148.82,148.76,26.0]
[1746668346884,11.12763284,148.82,148.77,11.12763284]
[1746668347362,11.12763284,148.82,148.78,11.12763284]
[1746668347564,29.7772817,148.83,148.78,11.12763284]
[1746668347873,6.71952694,148.82,148.78,11.12763284]
[1746668348182,23.5183443,148.82,148.78,11.12763284]
[1746668349591,23.5183443,148.82,148.75,11.12763284]
[1746668349878,23.5183443,148.82,148.78,11.12763284]
[1746668350676,6.71952694,148.82,148.78,11.12763284]
[1746668350981,6.71817265,148.85,148.81,11.12763284]
[1746668351164,6.71817265,148.85,148.83,11.12763284]
[1746668352260,6.71817265,148.85,148.82,11.12763284]
[1746668353663,6.71817265,148.85,148.83,11.12763284]
[1746668354274,6.7172701,148.87,148.84,11.12763284]
[1746668354455,6.7172701,148.87,148.86,11.12763284]
[1746668354656,23.50887341,148.88,148.85,11.12763284]
[1746668355175,34.63650625,148.88,148.83,11.12763284]
[1746668355375,23.50887341,148.88,148.84,11.12763284]
[1746668356181,23.50887341,148.88,148.85,11.12763284]
[1746668356881,6.71681891,148.88,148.87,11.12763284]
[1746668357492,6.71681891,148.88,148.86,11.12763284]
[1746668357876,35.4393704,148.91,148.87,11.12763284]
[1746668357877,42.15535738,148.9,148.87,11.12763284]
[1746668358074,42.15535738,148.9,148.86,11.12763284]
[1746668358275,53.28299022,148.9,148.86,11.12763284]
[1746668358477,11.12763284,148.89,148.81,6.71976976]
[1746668358686,11.12763284,148.89,148.81,26.0]
[1746668358889,11.12763284,148.88,148.84,11.12763284]
[1746668359076,11.12763284,148.89,148.84,11.12763284]
[1746668359696,23.50886619,148.88,148.84,11.12763284]
[1746668359882,23.50886619,148.88,148.85,11.12763284]
[1746668360896,23.50886619,148.88,148.86,11.12763284]
[1746668361468,23.50886619,148.88,148.85,11.12763284]
[1746668361898,16.79204728,148.88,148.85,11.12763284]
[1746668362397,6.71636778,148.89,148.85,11.12763284]
[1746668362699,6.71636778,148.89,148.86,11.12763284]
[1746668363897,6.71636778,148.89,148.82,17.84699069]
[1746668364196,6.71636778,148.89,148.86,11.12763284]
[1746668365974,23.50728725,148.89,148.86,11.12763284]
[1746668366286,23.50728725,148.89,148.85,11.12763284]
[1746668367876,23.50728725,148.89,148.82,11.12763284]
[1746668368094,34.63492009,148.89,148.84,11.12763284]
[1746668369205,11.12763284,148.88,148.84,11.12763284]
[1746668369376,23.50728725,148.89,148.84,11.08829674]
[1746668369582,34.63492009,148.89,148.84,11.08829674]
[1746668370806,11.12763284,148.88,148.84,11.08829674]
[1746668371098,23.50728725,148.89,148.84,11.08829674]
[1746668371404,11.12763284,148.88,148.84,11.08829674]
[1746668371582,11.12763284,148.88,148.84,11.12763284]
[1746668372401,6.7172701,148.87,148.84,11.12763284]
[1746668374400,6.7172701,148.87,148.81,26.0]
[1746668374599,34.63807819,148.87,148.8,1.5899]
[1746668374779,11.12763284,148.83,148.78,11.12763284]
[1746668375106,18.79181043,148.86,148.77,37.12763284]
[1746668375286,11.12763284,148.83,148.79,11.12763284]
[1746668375685,11.12763284,148.83,148.78,11.12763284]
[1746668375873,18.79181043,148.86,148.78,11.12763284]
[1746668376075,11.12763284,148.83,148.78,11.12763284]
[1746668376279,6.71952694,148.82,148.78,11.12763284]
[1746668376506,6.71952694,148.82,148.8,11.12763284]
[1746668376711,6.71862402,148.84,148.81,11.12763284]
[1746668376889,6.71862402,148.84,148.82,11.12763284]
[1746668377084,6.71772134,148.86,148.83,11.12763284]
[1746668377400,6.71772134,148.86,148.84,11.12763284]
[1746668377903,6.71772134,148.86,148.83,11.12763284]
[1746668379424,6.71772134,148.86,148.84,11.12763284]
[1746668379719,6.71772134,148.86,148.79,34.0308]
[1746668379720,6.71772134,148.86,148.85,11.12763284]
[1746668381112,23.50728725,148.89,148.85,11.12763284]
[1746668381495,23.50728725,148.89,148.82,11.12763284]
[1746668381691,18.64964886,148.88,148.79,34.0308]
[1746668382005,11.12763284,148.87,148.83,11.12763284]
[1746668382304,18.64964886,148.88,148.85,11.12763284]
[1746668382512,23.50728725,148.89,148.86,11.12763284]
[1746668382890,34.63492009,148.89,148.85,11.12763284]
[1746668383347,34.63492009,148.89,148.84,11.12763284]
[1746668383799,34.63492009,148.89,148.85,11.12763284]
[1746668384108,34.63492009,148.89,148.8,6.72026439]
[1746668384109,23.50728725,148.89,148.86,11.12763284]
[1746668384814,23.50728725,148.89,148.85,11.12763284]
[1746668384999,34.63492009,148.89,148.82,26.0]
[1746668385312,29.7772817,148.88,148.83,11.12763284]
[1746668385613,29.7772817,148.88,148.84,11.12763284]
[1746668386900,6.7172701,148.87,148.84,11.12763284]
[1746668388025,6.71681742,148.89,148.86,11.12763284]
[1746668388325,6.71546571,148.91,148.88,11.12763284]
[1746668388485,6.71546571,148.91,148.87,11.12763284]
[1746668388815,17.84309855,148.91,148.87,11.12763284]
[1746668389519,6.71546571,148.91,148.88,11.12763284]
[1746668391112,23.50413,148.91,148.88,11.12763284]
[1746668391922,23.50413,148.91,148.82,37.12763284]
[1746668392090,11.12763284,148.87,148.82,26.0]
[1746668392287,0.14216157,148.89,148.83,11.12763284]
[1746668392518,11.12763284,148.88,148.84,11.12763284]
[1746668392894,11.12763284,148.88,148.83,11.12763284]
[1746668393495,23.51044535,148.87,148.83,11.12763284]
[1746668393695,23.51044535,148.87,148.84,11.12763284]
[1746668394590,6.7172701,148.87,148.84,11.12763284]
[1746668395919,6.7172701,148.87,148.83,11.12763284]
[1746668397307,34.63807819,148.87,148.82,37.12763284]
[1746668397514,6.7172701,148.87,148.84,11.12763284]
[1746668397716,6.7172701,148.87,148.85,11.12763284]
[1746668399013,6.7172701,148.87,148.86,11.12763284]
[1746668399318,6.7172701,148.87,148.85,11.12763284]
[1746668400117,17.84400062,148.89,148.85,11.12763284]
[1746668400327,11.12763284,148.88,148.83,11.12763284]
[1746668400496,11.12763284,148.87,148.83,11.12763284]
[1746668400802,6.71636778,148.89,148.83,11.12763284]
[1746668401103,11.12763284,148.88,148.83,11.12763284]
[1746668402427,6.7172701,148.87,148.84,11.12763284]
[1746668406033,6.7172701,148.87,148.82,26.0]
[1746668406216,11.12763284,148.84,148.79,11.12763284]
[1746668406416,11.12763284,148.83,148.79,11.12763284]
[1746668406733,11.12763284,148.82,148.78,11.12763284]
[1746668407315,6.71997849,148.81,148.76,26.0]
[1746668407522,6.71997849,148.81,148.75,8.0097]
[1746668407721,6.71997849,148.81,148.77,11.12763284]